bitfinex-derivatives/quotes_SOLF0:USTF0_20241206
["timestamp","ask_amount","ask_price","bid_price","bid_amount"]
[1733479804281,14.97964247,235.17,235.02,1.3457]
[1733479804478,2.1247,235.13,235.05,2.1253]
[1733479804674,1.3355,235.19,235.02,1.3457]
[1733479804877,1.3355,235.19,235.03,1.3454]
[1733479805372,14.97964247,235.17,235.04,1.3873]
[1733479805572,2.1252,235.08,235.03,2.72]
[1733479805777,17.69964247,235.17,235.03,2.72]
[1733479806177,2.1252,235.08,235.03,2.72]
[1733479806983,17.69964247,235.17,235.03,2.72]
[1733479807177,14.97964247,235.13,235.03,2.72]
[1733479807676,2.1254,235.04,235.03,2.72]
[1733479807982,2.1254,235.04,234.99,1.3873]
[1733479809282,14.97964247,235.13,234.99,1.3873]
[1733479809473,2.1251,235.08,234.99,1.3873]
[1733479809674,2.9013,235.16,234.99,1.3873]
[1733479809873,14.97964247,235.13,234.99,1.3873]
[1733479810077,1.2875,235.12,234.99,1.3873]
[1733479810282,14.97964247,235.09,234.98,2.72]
[1733479810486,1.3792,235.08,234.94,2.72]
[1733479810685,14.97964247,235.05,234.91,1.2809]
[1733479810883,14.97964247,235.05,234.91,4.0009]
[1733479811779,14.97964247,235.05,234.85,14.97964247]
[1733479811984,14.97964247,235.05,234.88,2.72]
[1733479813180,14.97964247,235.05,234.89,2.1267]
[1733479813778,16.35884247,235.08,234.88,2.72]
[1733479813779,14.97964247,235.01,234.88,2.72]
[1733479814179,2.1266,234.91,234.88,2.72]
[1733479814985,14.97964247,235.01,234.88,4.8469]
[1733479814986,2.1265,234.93,234.88,4.8469]
[1733479815283,17.69964247,234.93,234.74,4.23949561]
[1733479815487,2.1276,234.81,234.74,2.1281]
[1733479815682,14.97964247,234.89,234.73,1.367]
[1733479815988,9.39995069,234.91,234.75,9.39995069]
[1733479816185,2.6086,234.92,234.78,9.39995069]
[1733479816489,2.6086,234.92,234.79,7.01280165]
[1733479816683,2.6086,234.92,234.78,9.39995069]
[1733479816684,9.39995069,234.94,234.78,9.39995069]
[1733479816886,9.39995069,234.94,234.8,2.72]
[1733479817090,2.1271,234.87,234.8,4.8475]
[1733479817385,9.39995069,234.94,234.8,2.72]
[1733479817793,2.1267,234.9,234.8,2.72]
[1733479817985,9.39995069,234.94,234.8,2.72]
[1733479818590,9.39995069,234.97,234.82,9.39995069]
[1733479818793,4.2499,235.1,234.83,1.3429]
[1733479818794,2.72,235.06,234.83,1.3429]
[1733479818989,9.39995069,234.96,234.83,1.3429]
[1733479819992,2.1269,234.88,234.83,3.4702]
[1733479820194,9.39995069,234.96,234.83,1.3429]
[1733479820693,2.1268,234.89,234.84,2.1272]
[1733479821290,9.39995069,234.96,234.83,1.3429]
[1733479821788,2.1266,234.92,234.86,2.1271]
[1733479822192,2.1266,234.92,234.84,2.72]
[1733479822395,2.1264,234.93,234.87,2.1269]
[1733479822993,2.1265,234.92,234.87,2.1269]
[1733479823391,1.3758,234.99,234.84,2.72]
[1733479823792,1.3758,234.99,234.84,7.08019189]
[1733479824092,2.1263,234.95,234.88,2.1268]
[1733479824292,1.3758,234.99,234.88,2.1268]
[1733479824493,1.3758,234.99,234.84,7.08019189]
[1733479824895,2.1263,234.94,234.84,7.08019189]
[1733479825392,2.1263,234.94,234.88,2.1269]
[1733479825598,2.1263,234.94,234.84,7.08019189]
[1733479825599,2.1263,234.95,234.84,7.08019189]
[1733479826293,9.39995069,234.94,234.83,1.3429]
[1733479826594,9.39995069,234.94,234.84,2.72]
[1733479826795,2.1267,234.91,234.85,2.1272]
[1733479826997,9.39995069,234.91,234.84,2.72]
[1733479827393,2.1268,234.89,234.84,2.72]
[1733479828000,2.1269,234.88,234.84,2.72]
[1733479828300,9.39995069,234.94,234.84,2.72]
[1733479828498,2.1268,234.89,234.84,4.8472]
[1733479828697,2.1268,234.89,234.84,2.72]
[1733479829101,2.1268,234.89,234.84,4.8472]
[1733479829402,9.39995069,234.94,234.84,4.8472]
[1733479829403,2.1267,234.9,234.84,4.8472]
[1733479829899,9.39995069,234.94,234.84,4.8472]
[1733479830294,9.39995069,234.91,234.84,2.72]
[1733479830500,2.127,234.87,234.85,2.72]
[1733479830693,9.39995069,234.91,234.85,2.72]
[1733479832496,9.39995069,234.88,234.74,2.88564]
[1733479832701,9.39995069,234.88,234.8,2.1275]
[1733479832702,2.1272,234.85,234.8,2.1275]
[1733479832895,9.39995069,234.91,234.81,2.72]
[1733479833305,2.1268,234.89,234.84,2.1272]
[1733479833603,9.39995069,234.91,234.81,2.72]
[1733479834606,2.1271,234.87,234.83,2.1273]
[1733479835208,2.1272,234.85,234.81,2.72]
[1733479835503,9.39995069,234.88,234.81,2.72]
[1733479835705,2.1273,234.84,234.81,2.72]
[1733479835907,9.39995069,234.88,234.81,2.72]
[1733479836099,9.39995069,234.88,234.79,1.2948]
[1733479836100,9.39995069,234.85,234.79,1.2948]
[1733479836307,2.1276,234.8,234.77,2.72]
[1733479836811,9.39995069,234.85,234.77,2.72]
[1733479837008,9.39995069,234.85,234.77,4.8478]
[1733479837304,9.39995069,234.85,234.77,2.72]
[1733479838310,9.39995069,234.85,234.71,4.0165]
[1733479838512,9.39995069,234.85,234.75,2.72]
[1733479838709,9.39995069,234.85,234.76,2.128]
[1733479839508,9.39995069,234.82,234.76,2.72]
[1733479839707,1.3859,234.91,234.76,2.72]
[1733479839708,9.39995069,234.85,234.76,2.72]
[1733479839906,9.39995069,234.89,234.76,2.72]
[1733479840410,2.1274,234.83,234.76,2.72]
[1733479840800,9.39995069,234.89,234.78,2.1278]
[1733479841310,2.1274,234.83,234.78,2.1278]
[1733479841509,9.39995069,234.89,234.79,2.1277]
[1733479842106,9.39995069,234.89,234.76,2.72]
[1733479842307,9.39995069,234.89,234.78,2.1278]
[1733479842708,9.39995069,234.86,234.77,2.1279]
[1733479842909,9.39995069,234.86,234.76,2.72]
[1733479843304,2.1276,234.81,234.77,2.1278]
[1733479845721,2.1276,234.81,234.76,2.72]
[1733479845917,2.1276,234.81,234.76,4.848]
[1733479846615,9.39995069,234.86,234.76,2.72]
[1733479847014,2.1277,234.8,234.76,2.72]
[1733479847414,9.39995069,234.86,234.76,4.848]
[1733479847612,2.1275,234.81,234.76,4.848]
[1733479847809,9.39995069,234.86,234.76,2.72]
[1733479848014,9.39995069,234.89,234.74,9.56559069]
[1733479848214,2.127,234.87,234.75,2.72]
[1733479848415,9.39995069,234.89,234.81,2.1275]
[1733479848612,9.39995069,234.89,234.82,2.72]
[1733479848914,2.127,234.87,234.82,2.72]
[1733479849113,2.127,234.87,234.82,4.8474]
[1733479849915,2.1272,234.86,234.82,2.72]
[1733479850814,9.39995069,234.89,234.82,2.72]
[1733479851413,1.2627,234.95,234.77,2.72]
[1733479851414,9.39995069,234.83,234.77,2.72]
[1733479851918,2.128,234.77,234.76,2.72]
[1733479852213,9.39995069,234.83,234.74,2.88564]
[1733479853418,9.39995069,234.83,234.74,5.01374]
[1733479854221,2.1279,234.78,234.74,5.01374]
[1733479855115,9.39995069,234.8,234.75,2.72]
[1733479856220,2.1278,234.78,234.75,4.848]
[1733479857222,9.39995069,234.8,234.75,2.72]
[1733479857421,2.1279,234.77,234.75,2.72]
[1733479858415,9.39995069,234.77,234.66,1.3444]
[1733479858721,9.39995069,234.77,234.71,2.1284]
[1733479858919,2.128,234.76,234.67,2.72]
[1733479859313,9.39995069,234.8,234.67,2.72]
[1733479860022,2.1278,234.79,234.74,2.1281]
[1733479860221,2.1278,234.79,234.75,2.72]
[1733479860423,2.1278,234.78,234.75,2.72]
[1733479860619,9.39995069,234.8,234.75,2.72]
[1733479861220,9.39995069,234.8,234.71,2.72]
[1733479861221,2.1281,234.75,234.71,2.72]
[1733479861423,9.39995069,234.8,234.71,2.72]
[1733479862021,2.1281,234.75,234.71,4.8484]
[1733479863424,9.39995069,234.8,234.71,2.72]
[1733479864022,2.128,234.76,234.71,4.8483]
[1733479864328,2.128,234.76,234.71,2.72]
[1733479864526,9.39995069,234.8,234.71,2.72]
[1733479866322,2.1277,234.79,234.73,2.1282]
[1733479866626,2.1277,234.79,234.71,2.72]
[1733479867626,9.39995069,234.83,234.71,6.98829071]
[1733479867825,9.39995069,234.83,234.71,2.72]
[1733479868018,9.39995069,234.83,234.72,2.72]
[1733479868226,9.39995069,234.86,234.72,2.72]
[1733479868424,2.1273,234.84,234.79,2.1277]
[1733479868626,9.39995069,234.87,234.8,2.72]
[1733479868826,9.39995069,234.87,234.81,2.72]
[1733479869018,9.39995069,234.87,234.81,4.8475]
[1733479869019,2.1271,234.86,234.81,4.8475]
[1733479869223,9.39995069,234.87,234.81,4.8475]
[1733479870024,9.39995069,234.9,234.81,4.8474]
[1733479870425,2.127,234.87,234.81,2.72]
[1733479870723,2.127,234.87,234.82,2.1274]
[1733479870930,9.39995069,234.9,234.82,2.1274]
[1733479871223,9.39995069,234.87,234.81,2.72]
[1733479872227,9.39995069,234.84,234.78,2.7]
[1733479873428,2.1277,234.8,234.78,2.7]
[1733479873630,9.39995069,234.84,234.75,2.7]
[1733479874228,2.1277,234.8,234.76,2.1279]
[1733479874529,9.39995069,234.84,234.76,2.1279]
[1733479875329,2.1277,234.8,234.76,2.1279]
[1733479875925,9.39995069,234.84,234.75,2.7]
[1733479876131,6.01961371,234.76,234.73,1.2773]
[1733479876333,6.01961371,234.76,234.74,2.7]
[1733479876535,8.14761371,234.76,234.74,2.7]
[1733479876834,8.14761371,234.76,234.69,2.7]
[1733479876835,6.01961371,234.76,234.69,2.7]
[1733479877043,6.01961371,234.73,234.69,2.7]
[1733479877725,2.1282,234.74,234.69,4.8285]
[1733479878136,9.41008195,234.76,234.67,1.3323]
[1733479878334,9.41008195,234.79,234.68,2.7]
[1733479878537,8.85209377,234.78,234.68,2.7]
[1733479878838,10.98009377,234.77,234.71,2.1283]
[1733479879037,9.41008195,234.79,234.71,2.1283]
[1733479879233,8.85721977,234.78,234.71,2.1283]
[1733479879434,9.41008195,234.79,234.71,2.1283]
[1733479879633,8.85797849,234.78,234.71,2.1283]
[1733479879830,2.1279,234.78,234.74,2.1281]
[1733479880440,2.1279,234.77,234.68,2.7]
[1733479880940,2.1285,234.71,234.68,2.7]
[1733479881142,9.41008195,234.73,234.68,2.7]
[1733479881545,9.41008195,234.73,234.66,2.7]
[1733479881735,9.41008195,234.73,234.65,2.7]
[1733479882545,2.1287,234.68,234.65,2.7]
[1733479882742,9.41008195,234.73,234.65,2.7]
[1733479883136,8.86387881,234.72,234.65,2.7]
[1733479883337,9.41008195,234.73,234.65,2.7]
[1733479884047,2.1284,234.72,234.65,2.7]
[1733479884342,9.41008195,234.76,234.65,2.7]
[1733479884546,2.1282,234.74,234.7,2.1285]
[1733479884938,9.41008195,234.81,234.71,2.7]
[1733479885139,8.86783465,234.8,234.72,2.7]
[1733479885342,9.41008195,234.81,234.72,2.7]
[1733479885735,9.41008195,234.81,234.73,2.1282]
[1733479886136,1.3826,234.82,234.72,2.7]
[1733479886137,9.41008195,234.78,234.72,2.7]
[1733479886442,9.41008195,234.75,234.66,2.7]
[1733479890145,9.41008195,234.78,234.66,2.7]
[1733479890448,2.1281,234.76,234.66,2.7]
[1733479890849,2.1281,234.76,234.72,2.1283]
[1733479891045,2.1281,234.76,234.72,4.8283]
[1733479891241,9.41008195,234.78,234.72,2.7]
[1733479892248,2.1281,234.76,234.72,2.7]
[1733479892445,9.41008195,234.78,234.72,2.7]
[1733479892944,2.128,234.76,234.72,4.8283]
[1733479895746,2.128,234.77,234.72,2.7]
[1733479895948,9.41008195,234.78,234.72,2.7]
[1733479896651,2.128,234.76,234.72,2.7]
[1733479897054,9.41008195,234.78,234.72,4.8283]
[1733479897851,2.128,234.76,234.73,2.1282]
[1733479898451,1.3108,234.83,234.72,2.7]
[1733479898748,1.3108,234.83,234.73,1.2633]
[1733479899149,2.1276,234.8,234.76,2.128]
[1733479899348,1.3108,234.83,234.73,1.2633]
[1733479899855,1.3108,234.83,234.77,2.1278]
[1733479900050,6.01816011,234.81,234.77,2.1278]
[1733479900445,2.1276,234.8,234.76,2.128]
[1733479900852,1.2973,234.95,234.73,7.28146011]
[1733479901148,6.01816011,234.82,234.8,2.1276]
[1733479901350,6.01816011,234.84,234.79,2.7]
[1733479901550,6.01816011,234.86,234.79,2.7]
[1733479901746,1.3446,234.94,234.79,8.71816011]
[1733479901953,9.39720589,234.92,234.79,2.7]
[1733479902253,2.1266,234.91,234.79,4.049]
[1733479902455,1.3446,234.94,234.8,9.39720589]
[1733479903453,2.1266,234.92,234.87,2.1269]
[1733479903654,2.1266,234.92,234.88,2.7]
[1733479904355,2.1262,234.96,234.9,2.1267]
[1733479904557,9.39720589,234.98,234.88,2.7]
[1733479904955,2.1262,234.96,234.91,2.1266]
[1733479905256,9.39720589,234.98,234.91,2.1266]
[1733479905446,2.1261,234.97,234.91,2.1266]
[1733479905647,9.39720589,234.98,234.88,2.7]
[1733479906054,11.52330589,234.98,234.92,2.1265]
[1733479906252,9.39720589,234.98,234.88,2.7]
[1733479906648,2.1264,234.94,234.88,2.7]
[1733479906954,9.39720589,234.98,234.88,2.7]
[1733479907154,9.39720589,234.92,234.86,2.7]
[1733479907357,2.1268,234.89,234.86,2.7]
[1733479907556,9.39720589,234.92,234.86,2.7]
[1733479907757,2.1271,234.86,234.82,2.7]
[1733479908250,9.39720589,234.89,234.82,2.7]
[1733479908455,8.8480496,234.88,234.82,2.7]
[1733479908652,9.39720589,234.89,234.82,2.7]
[1733479908848,8.84822788,234.88,234.82,2.7]
[1733479909155,9.39720589,234.89,234.82,2.7]
[1733479909356,8.84814058,234.88,234.82,2.7]
[1733479909557,9.39720589,234.89,234.82,2.7]
[1733479909858,8.84895615,234.88,234.82,2.7]
[1733479910059,8.84895615,234.87,234.82,2.7]
[1733479910355,9.39720589,234.92,234.84,2.1272]
[1733479910549,8.84921732,234.91,234.82,2.7]
[1733479910858,8.84921732,234.9,234.83,2.1273]
[1733479911061,8.84921732,234.89,234.83,2.1273]
[1733479911354,9.39720589,234.92,234.83,2.1273]
[1733479911651,2.1269,234.88,234.83,2.1273]
[1733479911856,2.1269,234.88,234.82,2.7]
[1733479911857,9.39720589,234.92,234.82,2.7]
[1733479912062,8.8485224,234.91,234.82,2.7]
[1733479912354,9.39720589,234.89,234.82,2.7]
[1733479912758,2.127,234.87,234.82,2.7]
[1733479912961,9.39720589,234.89,234.82,2.7]
[1733479913155,8.84721682,234.88,234.84,2.1272]
[1733479913459,9.39720589,234.92,234.82,2.7]
[1733479913656,10.97088219,234.91,234.85,2.1272]
[1733479913850,9.39720589,234.92,234.85,2.1272]
[1733479914658,2.1267,234.9,234.85,2.1272]
[1733479916762,9.39720589,234.89,234.79,1.349]
[1733479916956,9.39720589,234.89,234.8,2.7]
[1733479917558,9.39720589,234.89,234.74,53.69720589]
[1733479917760,9.39720589,234.86,234.76,2.7]
[1733479918256,2.1273,234.83,234.78,2.1278]
[1733479918663,2.1272,234.85,234.8,2.1276]
[1733479918960,9.39720589,234.89,234.77,4.1733022]
[1733479919156,9.39720589,234.89,234.76,2.7]
[1733479919958,2.1269,234.88,234.76,2.7]
[1733479920363,2.1269,234.88,234.83,2.1273]
[1733479920564,2.1269,234.88,234.83,4.8273]
[1733479921254,9.39720589,234.89,234.83,2.7]
[1733479921457,9.39720589,234.86,234.78,2.7]
[1733479922460,2.1274,234.83,234.78,4.8277]
[1733479923562,2.1275,234.82,234.78,4.8277]
[1733479923762,9.39720589,234.83,234.74,2.7]
[1733479924162,2.1278,234.78,234.68,5.49633382]
[1733479924467,9.39720589,234.83,234.69,2.7]
[1733479924662,9.39720589,234.8,234.69,2.7]
[1733479924857,2.128,234.76,234.72,2.1283]
[1733479925260,2.1282,234.74,234.71,2.7]
[1733479925468,9.39720589,234.77,234.68,1.2907]
[1733479925766,9.39720589,234.77,234.67,2.7]
[1733479926063,9.39720589,234.77,234.62,2.5437]
[1733479926267,9.39720589,234.74,234.63,2.7]
[1733479926567,4.0496,234.79,234.62,3.9907]
[1733479926568,9.39720589,234.71,234.62,3.9907]
[1733479926969,2.1289,234.66,234.62,1.2907]
[1733479927268,9.39720589,234.68,234.45,4.35415558]
[1733479927566,2.1294,234.6,234.54,2.1299]
[1733479927765,1.3717,234.65,234.52,12.09720589]
[1733479928073,1.3717,234.65,234.59,2.66146]
[1733479928264,1.3717,234.65,234.59,0.53196]
[1733479928670,1.3717,234.65,234.6,2.1294]
[1733479929578,1.3717,234.65,234.59,0.53196]
[1733479930267,10.76890589,234.65,234.59,0.53196]
[1733479930471,1.3717,234.65,234.59,0.53196]
[1733479930865,2.1292,234.63,234.59,0.53196]
[1733479931063,1.3717,234.65,234.59,0.53196]
[1733479931465,9.39720589,234.72,234.59,0.53196]
[1733479931865,2.1287,234.68,234.61,2.1292]
[1733479932070,9.39720589,234.72,234.61,2.1292]
[1733479932268,9.39720589,234.69,234.59,0.53196]
[1733479932670,11.52590589,234.69,234.63,2.1291]
[1733479932976,9.39720589,234.69,234.63,2.1291]
[1733479933669,2.1287,234.68,234.63,2.1291]
[1733479934165,9.39720589,234.69,234.59,0.53196]
[1733479934364,1.3624,234.71,234.66,2.1289]
[1733479934973,11.52550589,234.72,234.67,2.1288]
[1733479935168,9.39720589,234.75,234.64,6.97917862]
[1733479935574,2.1283,234.73,234.67,2.1288]
[1733479935977,9.39720589,234.75,234.64,2.7]
[1733479936276,9.39720589,234.75,234.65,2.129]
[1733479936475,9.39720589,234.72,234.64,2.7]
[1733479936676,2.1288,234.67,234.64,2.7]
[1733479936978,2.1288,234.67,234.62,2.1292]
[1733479937268,9.39720589,234.69,234.6,2.7]
[1733479937471,2.1291,234.64,234.6,2.7]
[1733479937977,1.2801,234.68,234.6,2.7]
[1733479938672,2.1291,234.64,234.6,2.7]
[1733479939378,9.39720589,234.66,234.59,0.53196]
[1733479939770,2.1294,234.6,234.59,0.53196]
[1733479940670,9.39720589,234.6,234.5,2.7]
[1733479941072,9.39720589,234.6,234.44,9.39720589]
[1733479941274,2.1299,234.55,234.45,2.7]
[1733479941576,9.39720589,234.6,234.49,2.1304]
[1733479941876,9.39720589,234.6,234.46,4.18109196]
[1733479942174,9.39720589,234.6,234.45,2.7]
[1733479943173,2.1298,234.56,234.49,2.1304]
[1733479943375,9.39720589,234.6,234.49,2.1304]
[1733479943972,9.39720589,234.57,234.47,2.1305]
[1733479944175,9.39720589,234.57,234.43,3.9795]
[1733479946079,9.39720589,234.57,234.47,2.1306]
[1733479946080,2.1302,234.52,234.47,2.1306]
[1733479946280,9.39720589,234.54,234.43,1.2795]
[1733479946475,9.39720589,234.54,234.43,3.9795]
[1733479946677,2.1307,234.46,234.4,4.8312]
[1733479946873,3.9674,234.56,234.4,4.8312]
[1733479946874,9.39720589,234.51,234.4,4.8312]
[1733479947177,9.39720589,234.48,234.34,2.7]
[1733479947379,9.39720589,234.48,234.36,2.1316]
[1733479947880,9.39720589,234.48,234.34,2.7]
[1733479948082,9.39720589,234.48,234.32,13.75531812]
[1733479948270,2.1309,234.45,234.33,2.7]
[1733479948473,1.2836,234.5,234.35,9.39720589]
[1733479948979,2.1306,234.48,234.42,2.131]
[1733479949372,1.2836,234.5,234.41,2.7]
[1733479949573,9.39720589,234.51,234.45,2.1307]
[1733479949872,9.39720589,234.51,234.41,2.7]
[1733479950075,2.1304,234.49,234.44,2.1309]
[1733479950275,9.39720589,234.51,234.41,2.7]
[1733479950677,9.39720589,234.48,234.37,1.3238]
[1733479951178,2.1312,234.4,234.36,2.7]
[1733479951483,9.39720589,234.45,234.34,2.7]
[1733479951680,2.1311,234.42,234.36,2.1316]
[1733479951874,9.39720589,234.48,234.34,2.7]
[1733479952273,9.39720589,234.48,234.37,2.1315]
[1733479952479,9.39720589,234.48,234.34,2.7]
[1733479952875,2.131,234.43,234.37,2.1315]
[1733479953181,2.131,234.43,234.34,2.7]
[1733479953881,2.131,234.43,234.34,6.96571038]
[1733479954490,9.39720589,234.45,234.34,2.7]
[1733479954684,9.39720589,234.42,234.34,2.7]
[1733479954882,9.39720589,234.42,234.34,4.8318]
[1733479955187,9.39720589,234.39,234.24,44.34]
[1733479955387,9.39720589,234.39,234.3,2.93172]
[1733479955580,2.1316,234.36,234.3,0.79962]
[1733479955884,9.39720589,234.42,234.32,2.1319]
[1733479956188,9.39720589,234.42,234.3,0.79962]
[1733479956385,9.39720589,234.42,234.31,1.2995]
[1733479956582,9.39720589,234.42,234.32,4.25296891]
[1733479956778,9.39720589,234.42,234.31,1.2995]
[1733479957285,2.1313,234.39,234.34,2.1317]
[1733479959285,9.39720589,234.42,234.3,0.79962]
[1733479959586,2.1316,234.37,234.3,3.49962]
[1733479960290,2.1317,234.36,234.3,5.63172]
[1733479960485,9.39720589,234.39,234.3,5.63172]
[1733479960789,2.1317,234.36,234.3,5.63172]
[1733479961179,9.39720589,234.39,234.3,3.49962]
[1733479961384,2.1316,234.36,234.31,2.132]
[1733479961585,9.39720589,234.39,234.3,3.49962]
[1733479961880,11.52860589,234.39,234.3,3.49962]
[1733479962282,9.39720589,234.39,234.3,3.49962]
[1733479962490,9.39720589,234.39,234.34,2.1317]
[1733479963389,11.52850589,234.39,234.35,2.1317]
[1733479963691,11.52850589,234.39,234.3,3.49962]
[1733479964194,9.39720589,234.39,234.3,3.49962]
[1733479964385,2.1314,234.38,234.33,2.1319]
[1733479964589,9.39720589,234.39,234.3,0.79962]
[1733479965189,9.39720589,234.39,234.31,4.2143265]
[1733479966689,11.52860589,234.39,234.34,2.1317]
[1733479966989,9.39720589,234.39,234.3,0.79962]
[1733479967394,2.1314,234.38,234.33,2.1318]
[1733479967595,9.39720589,234.39,234.3,0.79962]
[1733479967795,9.39720589,234.39,234.31,4.22651851]
[1733479968091,9.39720589,234.42,234.31,4.22651851]
[1733479968293,9.39720589,234.42,234.3,0.79962]
[1733479968798,9.39720589,234.42,234.31,4.18812276]
[1733479969191,2.1312,234.41,234.36,2.1316]
[1733479969699,2.1314,234.39,234.34,4.8317]
[1733479969996,9.39720589,234.42,234.34,2.7]
[1733479970497,9.39720589,234.42,234.34,4.8318]
[1733479970798,9.39720589,234.42,234.34,2.7]
[1733479971187,9.39720589,234.42,234.34,4.8318]
[1733479971698,2.1314,234.38,234.34,4.8318]
[1733479972094,9.39720589,234.36,234.28,2.1323]
[1733479972290,2.1319,234.33,234.27,2.7]
[1733479972697,2.1319,234.33,234.28,2.1323]
[1733479973395,9.39720589,234.33,234.24,0.99662]
[1733479974092,2.1322,234.3,234.25,2.1326]
[1733479974300,2.1322,234.3,234.24,0.99662]
[1733479974500,9.39720589,234.33,234.24,0.99662]
[1733479974698,2.1323,234.29,234.24,3.12932]
[1733479974900,9.39720589,234.33,234.24,0.99662]
[1733479975394,9.39720589,234.36,234.24,0.99662]
[1733479975790,9.39720589,234.36,234.26,2.1325]
[1733479976094,9.39720589,234.36,234.24,0.99662]
[1733479976293,2.1321,234.32,234.27,2.1324]
[1733479976906,2.1319,234.33,234.28,2.1323]
[1733479977104,9.39720589,234.36,234.24,0.99662]
[1733479977603,2.132,234.32,234.27,2.1323]
[1733479977798,9.39720589,234.36,234.24,0.99662]
[1733479978398,9.39720589,234.27,234.2,24.50345966]
[1733479978606,9.39720589,234.24,234.2,1.0]
[1733479978904,9.39720589,234.24,234.21,2.1329]
[1733479979107,9.39720589,234.28,234.2,1.0]
[1733479980397,9.39720589,234.28,234.21,2.133]
[1733479980398,2.1324,234.27,234.21,2.133]
[1733479980602,9.39720589,234.28,234.21,2.133]
[1733479980905,9.39720589,234.28,234.2,1.0]
[1733479981708,0.1923,234.4,234.2,1.0]
[1733479981709,9.39720589,234.31,234.2,1.0]
[1733479982104,11.52930589,234.31,234.25,2.1326]
[1733479982304,11.52930589,234.31,234.26,2.7]
[1733479982705,9.39720589,234.31,234.26,2.7]
[1733479983702,1.289,234.4,234.26,2.7]
[1733479983908,9.39720589,234.36,234.26,2.7]
[1733479984209,9.39720589,234.36,234.3,2.1321]
[1733479984401,9.39720589,234.36,234.26,2.7]
[1733479985201,9.39720589,234.36,234.31,2.132]
[1733479985507,9.39720589,234.36,234.32,2.7]
[1733479986105,9.39720589,234.36,234.24,3.9499]
[1733479986299,9.39720589,234.39,234.34,2.1317]
[1733479986506,9.39720589,234.39,234.35,2.7]
[1733479986701,11.52850589,234.39,234.35,2.7]
[1733479986911,1.0967,234.57,234.35,2.7]
[1733479987200,11.52760589,234.49,234.35,2.7]
[1733479987510,9.39720589,234.49,234.36,2.6161]
[1733479988101,9.39720589,234.49,234.44,2.1308]
[1733479988301,9.39720589,234.49,234.45,2.7]
[1733479988807,9.39720589,234.52,234.45,2.7]
[1733479989006,11.52740589,234.52,234.45,2.7]
[1733479989905,2.1302,234.51,234.46,2.7]
[1733479990409,9.39720589,234.52,234.46,2.7]
[1733479990704,9.39720589,234.49,234.46,2.7]
[1733479991700,9.39720589,234.49,234.36,2.6161]
[1733479991903,9.39720589,234.45,234.39,2.7]
[1733479992209,2.1311,234.42,234.36,1.3114]
[1733479992403,2.1311,234.42,234.37,2.7]
[1733479992610,2.131,234.44,234.37,4.8315]
[1733479992908,9.39720589,234.45,234.37,4.8315]
[1733479993105,9.39720589,234.45,234.37,2.7]
[1733479993805,2.131,234.44,234.38,2.1314]
[1733479994005,9.39720589,234.45,234.37,2.7]
[1733479994308,2.1304,234.49,234.43,2.1309]
[1733479994507,9.39720589,234.51,234.44,2.7]
[1733479994714,9.39720589,234.51,234.45,2.7]
[1733479994907,2.1304,234.5,234.45,2.7]
[1733479995610,9.39720589,234.51,234.45,2.7]
[1733479995815,11.52740589,234.51,234.45,2.7]
[1733479996210,8.85219236,234.5,234.45,4.8308]
[1733479996413,8.85219236,234.49,234.45,4.8308]
[1733479996609,9.39720589,234.51,234.45,2.7]
[1733479996809,8.85105402,234.5,234.45,2.7]
[1733479997013,9.39720589,234.51,234.45,2.7]
[1733479997410,9.39720589,234.51,234.45,4.8307]
[1733479997616,9.39720589,234.51,234.45,2.7]
[1733479997910,8.85133964,234.5,234.45,2.7]